bitfinex-derivatives/quotes_BTCF0:USTF0_20241021
["timestamp","ask_amount","ask_price","bid_price","bid_amount"]
[1729485724545,0.0365359,68947.0,68946.0,0.072545]
[1729485725248,0.04554102,68947.0,68946.0,0.072545]
[1729485725444,0.08107692,68947.0,68946.0,0.072545]
[1729485733046,0.08107692,68947.0,68946.0,0.09927276]
[1729485733853,0.08107692,68947.0,68946.0,0.072545]
[1729485735460,0.001,68947.0,68946.0,0.072545]
[1729485742768,0.08107453,68947.0,68946.0,0.072545]
[1729485744668,0.08107454,68947.0,68946.0,0.072545]
[1729485749878,0.08107735,68947.0,68946.0,0.072545]
[1729485751567,0.08107735,68947.0,68946.0,0.433345]
[1729485751783,0.03653573,68947.0,68946.0,0.433345]
[1729485755476,0.03653573,68947.0,68946.0,0.072545]
[1729485756276,0.03653573,68947.0,68946.0,0.178445]
[1729485756476,0.001,68947.0,68946.0,0.178445]
[1729485758181,0.16050335,68947.0,68946.0,0.178445]
[1729485758376,0.20504069,68947.0,68946.0,0.178445]
[1729485758570,0.16050335,68947.0,68946.0,0.178445]
[1729485758766,0.240573,68947.0,68946.0,0.178445]
[1729485759277,0.08106965,68947.0,68946.0,0.178445]
[1729485765778,0.001,68947.0,68946.0,0.178445]
[1729485768673,0.001,68947.0,68946.0,0.1059]
[1729485769374,0.45964585,68956.0,68947.0,0.072544]
[1729485769581,0.03553225,68955.0,68947.0,0.072544]
[1729485769777,0.03553225,68954.0,68947.0,0.072544]
[1729485769983,0.03553225,68953.0,68947.0,0.072544]
[1729485770181,0.46044585,68956.0,68947.0,0.072544]
[1729485770381,0.03553225,68955.0,68947.0,0.073544]
[1729485770583,0.03553225,68954.0,68947.0,0.073544]
[1729485770782,0.03553225,68953.0,68947.0,0.073544]
[1729485771087,0.46040585,68956.0,68947.0,0.073544]
[1729485771387,0.03553229,68955.0,68947.0,0.074544]
[1729485771592,0.03553229,68954.0,68947.0,0.074544]
[1729485771781,0.03553229,68953.0,68947.0,0.074544]
[1729485772090,0.46140585,68956.0,68947.0,0.074544]
[1729485772296,0.001,68953.0,68947.0,0.074544]
[1729485772484,0.03553229,68952.0,68947.0,0.073544]
[1729485772784,0.08007192,68951.0,68947.0,0.074544]
[1729485772989,0.08007192,68950.0,68947.0,0.074544]
[1729485773190,0.001,68953.0,68947.0,0.074544]
[1729485773191,0.08007192,68949.0,68947.0,0.074544]
[1729485773375,0.08007192,68948.0,68947.0,0.074544]
[1729485773582,0.04453963,68948.0,68947.0,0.074544]
[1729485773785,0.05204421,68955.0,68947.0,0.074544]
[1729485773786,0.03553229,68953.0,68947.0,0.073544]
[1729485773975,0.08007192,68952.0,68947.0,0.074544]
[1729485774286,0.08007192,68951.0,68947.0,0.074544]
[1729485774473,0.05204421,68955.0,68947.0,0.074544]
[1729485774474,0.08007192,68950.0,68947.0,0.074544]
[1729485774677,0.08007192,68949.0,68947.0,0.074544]
[1729485774888,0.08007192,68948.0,68947.0,0.074544]
[1729485775074,0.03553229,68948.0,68947.0,0.074544]
[1729485775276,0.08007192,68950.0,68947.0,0.074544]
[1729485775480,0.08007192,68949.0,68947.0,0.073544]
[1729485775688,0.08007192,68948.0,68947.0,0.073544]
[1729485775890,0.08007192,68948.0,68947.0,0.072544]
[1729485776791,0.13593229,68948.0,68945.0,0.3608]
[1729485776986,0.03553229,68947.0,68945.0,0.3608]
[1729485778591,0.08007322,68947.0,68945.0,0.3608]
[1729485779396,0.08107322,68947.0,68945.0,0.3608]
[1729485779597,0.08007322,68946.0,68945.0,0.3608]
[1729485779896,0.03553229,68946.0,68945.0,0.3608]
[1729485780793,0.001,68947.0,68945.0,0.3608]
[1729485781294,0.001,68947.0,68943.0,0.072548]
[1729485782196,0.001,68946.0,68943.0,0.072548]
[1729485782900,0.001,68947.0,68943.0,0.072548]
[1729485783692,0.001,68946.0,68944.0,0.072547]
[1729485785301,0.001,68947.0,68944.0,0.072547]
[1729485785891,0.001,68947.0,68944.0,0.09932968]
[1729485786093,0.001,68946.0,68944.0,0.09932968]
[1729485786904,0.001,68947.0,68944.0,0.09932968]
[1729485789219,0.12669682,68948.0,68944.0,0.09932968]
[1729485789220,0.001,68946.0,68944.0,0.09932968]
[1729485789919,0.001,68947.0,68944.0,0.09932968]
[1729485791423,0.12669682,68948.0,68944.0,0.09932968]
[1729485791623,0.001,68946.0,68944.0,0.09932968]
[1729485792328,0.001,68947.0,68944.0,0.09932968]
[1729485793122,0.001,68946.0,68944.0,0.09932968]
[1729485793834,0.001,68946.0,68945.0,0.3608]
[1729485794827,0.0528,68960.0,68946.0,0.072545]
[1729485794828,0.001,68947.0,68946.0,0.072545]
[1729485795732,0.04553643,68947.0,68946.0,0.072545]
[1729485795933,0.001,68947.0,68946.0,0.072545]
[1729485796132,0.001,68946.0,68945.0,0.3608]
[1729485796333,0.03653159,68946.0,68945.0,0.3608]
[1729485796537,0.03653159,68946.0,68945.0,0.79592]
[1729485797329,0.03653159,68946.0,68945.0,0.868466]
[1729485797839,0.03553159,68946.0,68945.0,0.868466]
[1729485798726,0.03653156,68946.0,68945.0,0.868466]
[1729485799232,0.03653156,68946.0,68945.0,0.433346]
[1729485799946,0.03552974,68957.0,68945.0,0.79592]
[1729485800141,0.15936109,68948.0,68946.0,0.072545]
[1729485800435,0.1593859,68949.0,68948.0,0.072543]
[1729485800636,0.0528,68960.0,68956.0,0.072534]
[1729485800936,0.0528,68960.0,68959.0,0.3608]
[1729485802023,0.0538,68960.0,68959.0,0.3608]
[1729485803937,0.0538,68960.0,68959.0,0.3618]
[1729485804633,0.0528,68960.0,68959.0,0.3628]
[1729485807040,0.0528,68960.0,68959.0,0.002]
[1729485808031,0.08832856,68960.0,68959.0,0.002]
[1729485808433,0.13286119,68960.0,68959.0,0.002]
[1729485808840,0.08832934,68960.0,68959.0,0.002]
[1729485817945,0.13286224,68960.0,68959.0,0.002]
[1729485820446,0.1328614,68960.0,68959.0,0.002]
[1729485829146,0.13286269,68960.0,68959.0,0.002]
[1729485832547,0.08832922,68960.0,68959.0,0.002]
[1729485832953,0.13286269,68960.0,68959.0,0.002]
[1729485834054,0.49366269,68960.0,68959.0,0.002]
[1729485834256,0.49366269,68960.0,68947.0,0.3608]
[1729485834257,0.072534,68957.0,68949.0,0.072541]
[1729485834556,0.15953704,68950.0,68949.0,0.072541]
[1729485834851,0.08006269,68950.0,68949.0,0.072541]
[1729485835355,0.08006269,68950.0,68949.0,0.073541]
[1729485835554,0.08006269,68950.0,68949.0,0.10111261]
[1729485835744,0.03552922,68950.0,68949.0,0.10111261]
[1729485837049,0.08006269,68950.0,68949.0,0.10111261]
[1729485838149,0.03552922,68950.0,68949.0,0.10111261]
[1729485839159,0.26805438,68950.0,68949.0,0.10111261]
[1729485839958,0.26805438,68950.0,68949.0,0.46191261]
[1729485840262,0.26805438,68950.0,68949.0,0.10111261]
[1729485840560,0.26805438,68950.0,68949.0,0.46191261]
[1729485840852,0.03553184,68950.0,68949.0,0.46191261]
[1729485841056,0.072534,68958.0,68950.0,0.072541]
[1729485841253,0.08007089,68957.0,68950.0,0.072541]
[1729485841462,0.08007089,68956.0,68950.0,0.072541]
[1729485841758,0.03553286,68955.0,68950.0,0.072541]
[1729485841957,0.03553286,68954.0,68950.0,0.072541]
[1729485842268,0.03553286,68953.0,68952.0,0.072539]
[1729485843565,0.03653286,68953.0,68952.0,0.073539]
[1729485844867,0.03753286,68953.0,68952.0,0.074539]
[1729485846149,0.03753286,68953.0,68952.0,0.435339]
[1729485846649,0.002,68953.0,68952.0,0.435339]
[1729485846854,0.03753212,68953.0,68952.0,0.074539]
[1729485847754,0.002,68953.0,68952.0,0.074539]
[1729485847949,0.0375313,68953.0,68952.0,0.074539]
[1729485848161,0.08206737,68953.0,68952.0,0.074539]
[1729485850854,0.05204004,68965.0,68952.0,0.074539]
[1729485850855,0.05204004,68965.0,68964.0,0.072526]
[1729485851055,0.18836349,68971.0,68969.0,0.072521]
[1729485851269,0.05,68972.0,68969.0,0.072521]
[1729485852157,0.001,68971.0,68969.0,0.073521]
[1729485852755,0.051,68972.0,68969.0,0.073521]
[1729485852960,0.052,68972.0,68969.0,0.074521]
[1729485853163,0.18821043,68970.0,68969.0,0.074521]
[1729485853567,0.001,68971.0,68969.0,0.074521]
[1729485854571,0.18921043,68971.0,68969.0,0.074521]
[1729485854768,0.18921043,68971.0,68969.0,0.073521]
[1729485854971,0.18821043,68972.0,68969.0,0.074521]
[1729485855474,0.19038582,68973.0,68969.0,0.074521]
[1729485855661,0.04452732,68972.0,68969.0,0.074521]
[1729485855862,0.00217539,68973.0,68969.0,0.074521]
[1729485856175,0.00217539,68973.0,68969.0,0.073521]
[1729485856370,0.00217539,68973.0,68969.0,0.074521]
[1729485857873,0.00217539,68973.0,68969.0,0.073521]
[1729485858071,0.00217539,68973.0,68969.0,0.002]
[1729485858261,0.00217539,68973.0,68971.0,0.072519]
[1729485858461,0.37888612,68984.0,68972.0,0.0502]
[1729485858462,0.01808612,68984.0,68972.0,0.0502]
[1729485858668,0.01808612,68984.0,68980.0,0.07251]
[1729485858669,0.0355181,68983.0,68980.0,0.07251]
[1729485858965,0.0355181,68982.0,68980.0,0.07251]
[1729485859165,0.0355181,68981.0,68980.0,0.07251]
[1729485860271,0.01808612,68984.0,68981.0,0.072509]
[1729485860478,0.03551784,68983.0,68981.0,0.072509]
[1729485860773,0.03551797,68982.0,68981.0,0.072509]
[1729485861282,0.01808612,68984.0,68981.0,0.072509]
[1729485861472,0.01808612,68984.0,68980.0,0.002]
[1729485861774,0.01808612,68984.0,68983.0,0.3608]
[1729485862567,0.01808612,68984.0,68982.0,0.072507]
[1729485863069,0.08003136,68983.0,68982.0,0.072507]
[1729485864991,0.08003136,68983.0,68982.0,0.073507]
[1729485865165,0.08003136,68983.0,68982.0,0.074507]
[1729485865478,0.03551532,68983.0,68982.0,0.074507]
[1729485865661,0.08003136,68983.0,68982.0,0.002]
[1729485866472,0.08003136,68983.0,68982.0,0.074507]
[1729485867570,0.08003781,68983.0,68982.0,0.074507]
[1729485870968,0.01808612,68984.0,68982.0,0.074507]
[1729485872076,0.01808612,68984.0,68982.0,0.073507]
[1729485872268,0.01808612,68984.0,68982.0,0.074507]
[1729485872673,0.01808612,68984.0,68982.0,0.073507]
[1729485872876,0.01808612,68984.0,68982.0,0.074507]
[1729485877079,0.035517,68983.0,68982.0,0.074507]
[1729485878179,0.035517,68983.0,68982.0,0.073507]
[1729485878383,0.035517,68983.0,68982.0,0.002]
[1729485878384,0.03551707,68983.0,68982.0,0.002]
[1729485878571,0.08003749,68983.0,68982.0,0.002]
[1729485879482,0.36329681,68983.0,68982.0,0.002]
[1729485879876,0.36329681,68983.0,68977.0,0.3608]
[1729485879877,0.79851865,68983.0,68977.0,0.3608]
[1729485880076,0.29113189,68982.0,68977.0,0.3608]
[1729485880384,0.23910786,68981.0,68977.0,0.3608]
[1729485880584,0.08003749,68980.0,68977.0,0.3608]
[1729485880778,0.08003749,68979.0,68977.0,0.3608]
[1729485881476,0.08003749,68979.0,68977.0,0.3618]
[1729485881676,0.08003749,68979.0,68977.0,0.3628]
[1729485882083,0.08003749,68979.0,68977.0,0.002]
[1729485882480,0.08003749,68978.0,68977.0,0.002]
[1729485882677,0.08004281,68978.0,68977.0,0.002]
[1729485884187,0.08204281,68978.0,68977.0,0.002]
[1729485884689,0.08204281,68978.0,68977.0,0.001]
[1729485884886,0.08404281,68978.0,68977.0,0.002]
[1729485887177,0.08404281,68978.0,68972.0,0.3608]
[1729485887178,0.13606709,68978.0,68972.0,0.32652001]
[1729485887378,0.17946709,68977.0,68972.0,0.32652001]
[1729485887584,0.08004281,68976.0,68972.0,0.32652001]
[1729485887779,0.08004691,68975.0,68972.0,0.32652001]
[1729485887977,0.08004691,68974.0,68972.0,0.39903701]
[1729485888176,0.08004691,68973.0,68972.0,0.40003701]
[1729485888384,0.08004691,68973.0,68972.0,0.40103701]
[1729485890680,0.08004691,68973.0,68972.0,0.40003701]
[1729485890880,0.08004691,68973.0,68972.0,0.40103701]
[1729485890881,0.08304691,68973.0,68972.0,0.40103701]
[1729485891182,0.08604691,68973.0,68972.0,0.40103701]
[1729485894288,0.04152222,68973.0,68972.0,0.40103701]
[1729485895788,0.006,68973.0,68972.0,0.40103701]
[1729485896184,0.04152134,68973.0,68972.0,0.40103701]
[1729485896385,0.006,68973.0,68972.0,0.40103701]
[1729485897085,0.04152123,68973.0,68972.0,0.40103701]
[1729485897992,0.006,68973.0,68972.0,0.40103701]
[1729485898188,0.04152121,68973.0,68972.0,0.40103701]
[1729485898395,0.006,68973.0,68972.0,0.40103701]
[1729485898781,0.0415212,68973.0,68972.0,0.40103701]
[1729485899900,0.01808612,68984.0,68981.0,0.072509]
[1729485900191,0.04451922,68983.0,68982.0,0.072507]
[1729485901498,0.04451877,68983.0,68982.0,0.072507]
[1729485903299,0.04451877,68983.0,68982.0,0.073507]
[1729485903601,0.04451877,68983.0,68982.0,0.074507]
[1729485905996,0.20375447,68983.0,68982.0,0.074507]
[1729485907887,0.23927307,68983.0,68982.0,0.074507]
[1729485908088,0.23927307,68983.0,68982.0,0.06705631]
[1729485908298,0.08003737,68983.0,68982.0,0.06705631]
[1729485913097,0.08003737,68983.0,68982.0,0.06605631]
[1729485913299,0.08003737,68983.0,68982.0,0.06705631]
[1729485916099,0.0355186,68983.0,68982.0,0.06705631]
[1729485916301,0.03551889,68983.0,68982.0,0.06705631]
[1729485917811,0.04452042,68983.0,68982.0,0.06705631]
[1729485918008,0.09812543,68984.0,68982.0,0.06705631]
[1729485918201,0.08003931,68983.0,68982.0,0.06705631]
[1729485918510,0.08003931,68983.0,68982.0,0.06605631]
[1729485918803,0.08003931,68983.0,68982.0,0.06705631]
[1729485919794,0.08003931,68983.0,68982.0,0.06605631]
[1729485920111,0.08003931,68983.0,68982.0,0.06705631]
[1729485920908,0.08003788,68983.0,68982.0,0.06705631]
[1729485921503,0.08003834,68983.0,68982.0,0.06705631]
[1729485926410,0.08003788,68983.0,68982.0,0.06705631]
[1729485929803,0.08003788,68983.0,68982.0,0.002]
[1729485931008,0.03551821,68983.0,68982.0,0.002]
[1729485931515,0.0355204,68983.0,68982.0,0.002]
[1729485932504,0.06638612,68984.0,68982.0,0.002]
[1729485932698,0.01808612,68984.0,68982.0,0.074507]
[1729485935801,0.0355173,68983.0,68982.0,0.074507]
[1729485938112,0.08003583,68983.0,68982.0,0.074507]
[1729485938304,0.08003583,68983.0,68982.0,0.073507]
[1729485938612,0.08003583,68983.0,68982.0,0.074507]
[1729485941205,0.08003564,68983.0,68982.0,0.074507]
[1729485946121,0.03551722,68983.0,68982.0,0.074507]
[1729485946318,0.03551751,68983.0,68982.0,0.074507]
[1729485951318,0.03551765,68983.0,68982.0,0.074507]
[1729485951924,0.08003661,68983.0,68982.0,0.074507]
[1729485960148,0.01808612,68984.0,68982.0,0.074507]
[1729485960835,0.03551766,68983.0,68982.0,0.074507]
[1729485961242,0.01808612,68984.0,68982.0,0.074507]
[1729485961753,0.03551766,68983.0,68982.0,0.074507]
[1729485962246,0.01808612,68984.0,68982.0,0.074507]
[1729485962450,0.03551765,68983.0,68982.0,0.074507]
[1729485963260,0.01808612,68984.0,68982.0,0.074507]
[1729485963558,0.03551766,68983.0,68982.0,0.074507]
[1729485965052,0.03551766,68983.0,68982.0,0.072507]
[1729485965258,0.03551766,68983.0,68982.0,0.074507]
[1729485965849,0.03551766,68983.0,68982.0,0.073507]
[1729485966043,0.03551766,68983.0,68982.0,0.074507]
[1729485967154,0.03551766,68983.0,68982.0,0.002]
[1729485967357,0.08791766,68983.0,68982.0,0.002]
[1729485967651,0.13243921,68983.0,68982.0,0.002]
[1729485969760,0.08791766,68983.0,68982.0,0.002]
[1729485972760,0.08003824,68983.0,68982.0,0.002]
[1729485973157,0.1595188,68983.0,68982.0,0.002]
[1729485973360,0.08003824,68983.0,68982.0,0.002]
[1729485975459,0.08003824,68983.0,68982.0,0.02786559]
[1729485975655,0.08003824,68983.0,68982.0,0.002]
[1729485979770,0.08002674,68983.0,68982.0,0.0745]
[1729485981164,0.08002415,68983.0,68982.0,0.0745]
[1729485983165,0.03551212,68983.0,68982.0,0.0745]
[1729485984170,0.01808612,68984.0,68982.0,0.0745]
[1729485985278,0.02820899,68997.0,68982.0,0.0735]
[1729485985461,0.02820899,68997.0,68988.0,0.433294]
[1729485985664,0.05839379,68989.0,68988.0,0.433294]
[1729485985865,0.02288554,68989.0,68988.0,0.433294]
[1729485987662,0.02288554,68989.0,68988.0,0.434294]
[1729485987980,0.02288554,68989.0,68988.0,0.435294]
[1729485990562,0.02288554,68989.0,68988.0,0.46148622]
[1729485995271,0.02288554,68989.0,68988.0,0.57092622]
[1729485998173,0.1028991,68989.0,68988.0,0.57092622]
[1729485999061,0.1028991,68989.0,68988.0,0.46148622]
[1729485999270,0.1028991,68989.0,68988.0,0.57088622]
[1729486003673,0.1028991,68989.0,68988.0,0.93168622]
[1729486004268,0.1028991,68989.0,68988.0,0.82228622]
[1729486004476,0.1028991,68989.0,68988.0,0.93168622]
[1729486004675,0.10289933,68989.0,68988.0,0.93168622]
[1729486005181,0.02288554,68989.0,68988.0,0.93168622]
[1729486013289,0.0583937,68989.0,68988.0,0.93168622]
[1729486013585,0.0583937,68989.0,68988.0,0.93848622]
[1729486014880,0.02288554,68989.0,68988.0,0.93844622]
[1729486015183,0.12908554,68989.0,68988.0,0.93844622]
[1729486020089,0.12908554,68989.0,68988.0,0.82228622]
[1729486020300,0.12908554,68989.0,68988.0,0.93848622]
[1729486022589,0.12908554,68989.0,68988.0,0.98195764]
[1729486022986,0.12908554,68989.0,68988.0,0.98195613]
[1729486024096,0.12908554,68989.0,68988.0,0.86575613]
[1729486024396,0.12908554,68989.0,68988.0,0.98195613]
[1729486026085,0.12908554,68989.0,68988.0,0.93848622]
[1729486027389,0.07538554,68989.0,68988.0,0.93848622]
[1729486028493,0.15539687,68989.0,68988.0,0.93848622]
[1729486033396,0.15539671,68989.0,68988.0,0.93848622]
[1729486035289,0.07538554,68989.0,68988.0,0.99646546]
[1729486036097,0.07538554,68989.0,68988.0,0.93848622]
[1729486036497,0.07538554,68989.0,68988.0,0.99641536]
[1729486036697,0.07538554,68989.0,68988.0,0.93848622]
[1729486038402,0.07538554,68989.0,68988.0,0.82228622]
[1729486038594,0.07538554,68989.0,68988.0,0.93844622]
[1729486038895,0.07538554,68989.0,68988.0,0.21684622]
[1729486039100,0.07538554,68989.0,68988.0,0.93844622]
[1729486040795,0.07538554,68989.0,68988.0,0.82228622]
[1729486041106,0.07538554,68989.0,68988.0,0.93844622]
[1729486042901,0.07538554,68989.0,68988.0,0.21684622]
[1729486043096,0.07538554,68989.0,68988.0,0.93844622]
[1729486047898,0.07538554,68989.0,68988.0,0.21684622]
[1729486048100,0.07538554,68989.0,68988.0,0.93844622]
[1729486050403,0.11089116,68989.0,68988.0,0.93844622]
[1729486055514,0.15539505,68989.0,68988.0,0.93844622]
[1729486055707,0.11089116,68989.0,68988.0,0.93844622]
[1729486056414,0.15539497,68989.0,68988.0,0.93844622]
[1729486057613,0.11089116,68989.0,68988.0,0.93844622]
[1729486058510,0.07538554,68989.0,68988.0,0.93844622]
[1729486063120,0.07538554,68989.0,68988.0,0.82228622]
[1729486063428,0.07538554,68989.0,68988.0,0.94144622]
[1729486065126,0.07538554,68989.0,68988.0,0.21984622]
[1729486065330,0.07538554,68989.0,68988.0,0.94144622]
[1729486065527,0.07538554,68989.0,68988.0,0.21984622]
[1729486065729,0.07538554,68989.0,68988.0,0.94144622]
[1729486068730,0.07538554,68989.0,68988.0,0.21984622]
[1729486068933,0.07538554,68989.0,68988.0,0.94144622]
[1729486077041,0.07538554,68989.0,68988.0,0.94044622]
[1729486077448,0.07538554,68989.0,68988.0,0.93944622]
[1729486080946,0.07538554,68989.0,68988.0,0.21784622]
[1729486081237,0.07538554,68989.0,68988.0,0.93944622]
[1729486086549,0.07538554,68989.0,68988.0,0.82028622]
[1729486086749,0.07538554,68989.0,68988.0,0.93244622]
[1729486094456,0.07538554,68989.0,68988.0,0.82028622]
[1729486094659,0.07538554,68989.0,68988.0,0.93244622]
[1729486098060,0.02288554,68989.0,68988.0,0.93244622]
[1729486100264,0.02288554,68989.0,68988.0,0.82028622]
[1729486100564,0.02288554,68989.0,68988.0,0.93244622]
[1729486118669,0.05839008,68989.0,68988.0,0.93244622]
[1729486118976,0.10289261,68989.0,68988.0,0.93244622]
[1729486119676,0.10289262,68989.0,68988.0,0.93244622]
[1729486120769,0.05839008,68989.0,68988.0,0.93244622]
[1729486122675,0.05839008,68989.0,68988.0,0.21084622]
[1729486122876,0.05839008,68989.0,68988.0,0.93244622]
[1729486124668,0.05839016,68989.0,68988.0,0.93244622]
[1729486125069,0.05839016,68989.0,68988.0,0.21084622]
[1729486125264,0.05839016,68989.0,68988.0,0.93244622]
[1729486125464,0.05839016,68989.0,68988.0,0.21084622]
[1729486125678,0.05839016,68989.0,68988.0,0.93244622]
[1729486125679,0.02288554,68989.0,68988.0,0.93244622]
[1729486133681,0.02288554,68989.0,68988.0,0.97589967]
[1729486134279,0.02288554,68989.0,68988.0,0.93244622]
[1729486139683,0.02288554,68989.0,68988.0,0.21084622]
[1729486139883,0.02288554,68989.0,68988.0,0.93244622]
[1729486141186,0.10289331,68989.0,68988.0,0.93244622]
[1729486147091,0.05839039,68989.0,68988.0,0.93244622]
[1729486147888,0.02288554,68989.0,68988.0,0.93244622]
[1729486151684,0.0186121,68993.0,68988.0,1.04284178]
[1729486151889,0.0186121,68993.0,68992.0,0.07249]
[1729486155895,0.09861379,68993.0,68992.0,0.07249]
[1729486158698,0.05411425,68993.0,68992.0,0.07249]
[1729486158997,0.05411421,68993.0,68992.0,0.07249]
[1729486161604,0.02689761,68994.0,68990.0,0.00091574]
[1729486161793,0.02689761,68994.0,68993.0,0.072489]
[1729486162302,0.02907825,68996.0,68993.0,0.02177004]
[1729486162500,0.02907825,68996.0,68995.0,0.433287]
[1729486162998,0.02907825,68996.0,68995.0,0.50570512]
[1729486163210,0.02907825,68996.0,68995.0,0.433287]
[1729486164208,0.02907825,68996.0,68995.0,0.434287]
[1729486164501,0.02907825,68996.0,68995.0,0.435287]
[1729486165503,0.02907825,68996.0,68995.0,0.46119501]
[1729486166102,0.02907825,68996.0,68995.0,0.48204849]
[1729486166893,0.02907825,68996.0,68995.0,0.46119501]
[1729486167095,0.02907825,68996.0,68995.0,0.48204892]
[1729486167295,0.02907825,68996.0,68995.0,0.46119501]
[1729486167701,0.02907825,68996.0,68995.0,0.48204862]
[1729486168800,0.0301,69021.0,69010.0,0.072471]
[1729486169100,0.0333,69014.0,69013.0,0.072468]
[1729486169299,0.0333,69014.0,69013.0,0.11578094]
[1729486169599,0.0333,69014.0,69013.0,0.072468]
[1729486170102,0.0631,69021.0,69016.0,0.072465]
[1729486170309,0.0631,69021.0,69016.0,0.433265]
[1729486170500,0.0631,69021.0,69016.0,0.541985]
[1729486172599,0.0631,69021.0,69016.0,0.542985]
[1729486172998,0.0631,69021.0,69016.0,0.543985]
[1729486174096,0.0301,69021.0,69016.0,0.543985]
[1729486174704,0.0333,69026.0,69016.0,0.978665]
[1729486174894,0.0333,69026.0,69021.0,0.433259]
[1729486175995,0.0333,69026.0,69021.0,0.541979]
[1729486176198,0.0333,69026.0,69021.0,0.542979]
[1729486177805,0.0333,69026.0,69021.0,0.543979]
[1729486177999,0.07997221,69025.0,69021.0,0.904779]
[1729486178203,0.04226254,69022.0,69021.0,0.904779]
[1729486181512,0.08674564,69022.0,69021.0,0.904779]
[1729486182013,0.08674564,69022.0,69021.0,0.183179]
[1729486182312,0.08674564,69022.0,69021.0,0.904779]
[1729486182706,6.4e-07,69022.0,69021.0,0.904779]
[1729486182906,0.0318,69029.0,69026.0,0.072454]
[1729486184118,0.0318,69029.0,69026.0,0.181134]
[1729486184710,0.0318,69029.0,69026.0,0.182134]
[1729486186017,0.0318,69029.0,69026.0,0.183134]
[1729486190232,0.0318,69029.0,69026.0,0.2092231]
[1729486190828,0.0318,69029.0,69026.0,0.1005431]
[1729486191029,0.0318,69029.0,69026.0,0.0280891]
[1729486191233,0.0318,69029.0,69021.0,0.795059]
[1729486191432,0.103555,69026.0,69021.0,0.7216]
[1729486191628,0.103555,69026.0,69022.0,0.10868]
[1729486192320,0.103555,69026.0,69021.0,0.74921545]
[1729486192524,0.103555,69026.0,69022.0,0.10868]
[1729486192823,0.103555,69026.0,69021.0,0.74813545]
[1729486192824,0.0311,69026.0,69023.0,0.10868]
[1729486193024,0.07997823,69025.0,69021.0,0.82355445]
[1729486193333,0.07997823,69024.0,69022.0,0.10868]
[1729486193529,0.07997823,69023.0,69022.0,0.10868]
[1729486193834,0.07997823,69023.0,69022.0,0.11068]
[1729486194323,0.07997823,69023.0,69022.0,0.10968]
[1729486194723,0.08097823,69023.0,69022.0,0.10968]
[1729486196127,0.08097823,69023.0,69022.0,0.11068]
[1729486196335,0.08097823,69023.0,69022.0,0.47148]
[1729486196641,0.08097823,69023.0,69022.0,0.3628]
[1729486196845,0.08097823,69023.0,69022.0,0.47148]
[1729486198531,0.08097823,69023.0,69022.0,0.11068]
[1729486198732,0.08097823,69023.0,69022.0,0.47148]
[1729486200741,0.16054132,69023.0,69022.0,0.47148]
[1729486200941,0.08097823,69023.0,69022.0,0.47148]
[1729486201138,0.001,69023.0,69022.0,0.47148]
[1729486203045,0.001,69023.0,69022.0,0.3628]
[1729486203231,0.001,69023.0,69022.0,0.4714]
[1729486209042,0.03648911,69023.0,69022.0,0.3628]
[1729486209355,0.001,69023.0,69022.0,0.4714]
[1729486209538,0.04548503,69023.0,69022.0,0.3628]
[1729486209843,0.08097414,69023.0,69022.0,0.3628]
[1729486211347,0.51561414,69023.0,69022.0,0.3628]
[1729486212245,0.51562368,69023.0,69022.0,0.3628]
[1729486215553,0.56760921,69023.0,69022.0,0.3628]
[1729486216256,0.43564,69023.0,69022.0,0.3628]
[1729486221645,0.43564,69023.0,69022.0,0.435258]
[1729486222855,0.001,69023.0,69022.0,0.435258]
[1729486225857,0.001,69023.0,69022.0,0.543858]
[1729486231363,0.03648994,69023.0,69022.0,0.543858]
[1729486231658,0.001,69023.0,69022.0,0.543858]
[1729486232150,0.03648994,69023.0,69022.0,0.543858]
[1729486232351,0.001,69023.0,69022.0,0.543858]
[1729486233155,0.03648994,69023.0,69022.0,0.543858]
[1729486233352,0.08097417,69023.0,69022.0,0.543858]
[1729486237251,0.08097343,69023.0,69022.0,0.435258]
[1729486237666,0.08097343,69023.0,69022.0,0.543778]
[1729486239362,0.001,69023.0,69022.0,0.543778]
[1729486246070,0.001,69023.0,69022.0,0.435258]
[1729486246268,0.001,69023.0,69022.0,0.543778]
[1729486246269,0.08097726,69023.0,69022.0,0.543778]
[1729486246469,0.16026577,69023.0,69022.0,0.543778]
[1729486246967,0.19575705,69023.0,69022.0,0.543778]
[1729486247369,0.16026577,69023.0,69022.0,0.543778]
[1729486247671,0.08097721,69023.0,69022.0,0.435258]
[1729486250276,0.08097721,69023.0,69022.0,0.3628]
[1729486252178,0.08097721,69023.0,69022.0,0.435258]
[1729486253478,0.001,69023.0,69022.0,0.435258]
[1729486255165,0.00689652,69027.0,69026.0,0.072454]
[1729486255369,0.00689652,69027.0,69026.0,0.433254]
[1729486255868,0.00689652,69027.0,69026.0,0.3608]
[1729486256069,0.00689652,69027.0,69026.0,0.47828]
[1729486256272,0.00689652,69027.0,69026.0,0.47928]
[1729486257076,0.00689652,69027.0,69026.0,0.3618]
[1729486257579,0.44149652,69027.0,69026.0,0.3618]
[1729486257872,0.44149652,69027.0,69026.0,0.3628]
[1729486259075,0.03859652,69027.0,69026.0,0.3628]
[1729486260169,0.00689652,69027.0,69026.0,0.3628]
[1729486261676,0.04238607,69027.0,69026.0,0.3628]
[1729486262080,0.08686981,69027.0,69026.0,0.002]
[1729486262276,0.08686981,69027.0,69026.0,0.3628]
[1729486265782,0.08687416,69027.0,69026.0,0.3628]
[1729486267175,0.52147416,69027.0,69026.0,0.3628]
[1729486267565,0.57345591,69027.0,69026.0,0.3628]
[1729486268481,0.44149652,69027.0,69026.0,0.3628]
[1729486270085,0.00689652,69027.0,69026.0,0.3628]
[1729486271575,0.04238874,69027.0,69026.0,0.3628]
[1729486271792,0.04238858,69027.0,69026.0,0.3628]
[1729486272376,0.04238785,69027.0,69026.0,0.3628]
[1729486274492,0.00689652,69027.0,69026.0,0.3628]
[1729486280488,0.00689652,69027.0,69026.0,0.002]
[1729486280795,0.00689652,69027.0,69026.0,0.3628]
[1729486282285,0.00689652,69027.0,69026.0,0.002]
[1729486282489,0.04238694,69027.0,69026.0,0.3628]
[1729486283487,0.08687183,69027.0,69026.0,0.3628]
[1729486284596,0.08687183,69027.0,69026.0,0.435254]